bitfinex/quotes_BTCUSD_20260104
["timestamp","ask_amount","ask_price","bid_price","bid_amount"]
[1767529476332,0.01096286,91217.0,91213.0,0.01096334]
[1767529476710,0.01096286,91217.0,91212.0,0.08765551]
[1767529477013,0.01096286,91217.0,91213.0,0.04658379]
[1767529477217,0.06577736,91217.0,91213.0,0.04658379]
[1767529477541,0.01096274,91218.0,91213.0,0.11236368]
[1767529477700,0.06577651,91218.0,91214.0,0.04658379]
[1767529478254,0.01096274,91218.0,91214.0,0.05754701]
[1767529478462,0.0109625,91220.0,91216.0,0.05754677]
[1767529478660,0.06577467,91221.0,91218.0,0.01]
[1767529479256,0.06577467,91221.0,91216.0,0.05754677]
[1767529479647,0.01096238,91221.0,91216.0,0.04658379]
[1767529479809,0.0109625,91220.0,91216.0,0.05754677]
[1767529480009,0.06577484,91221.0,91217.0,0.04658379]
[1767529480207,0.0109625,91220.0,91217.0,0.04658379]
[1767529481936,0.06577445,91221.0,91217.0,0.04658379]
[1767529483661,0.05481065,91225.0,91220.0,0.04658379]
[1767529483866,0.01096178,91226.0,91223.0,0.04658379]
[1767529484025,0.06577052,91227.0,91223.0,0.04658379]
[1767529484826,0.05480482,91233.0,91227.0,0.04658379]
[1767529485011,0.04550313,91231.0,91228.0,0.06576923]
[1767529485213,0.02192,91232.0,91228.0,0.06576923]
[1767529485663,0.04550313,91231.0,91224.0,0.21174102]
[1767529486111,0.02192,91232.0,91228.0,0.03383741]
[1767529486264,0.02192,91232.0,91229.0,0.04658379]
[1767529487008,0.08768657,91232.0,91229.0,0.04558479]
[1767529487205,0.000999,91230.0,91226.0,0.06477156]
[1767529487380,0.03288106,91232.0,91228.0,0.01096154]
[1767529487726,0.03288106,91232.0,91229.0,0.04644081]
[1767529488054,0.08768665,91232.0,91229.0,0.04644081]
[1767529488218,0.03288106,91232.0,91229.0,0.04644081]
[1767529488378,0.02192,91232.0,91229.0,0.04644081]
[1767529488590,0.02192,91232.0,91229.0,0.05740223]
[1767529488794,0.02192,91232.0,91230.0,0.04658379]
[1767529489585,0.02192,91232.0,91231.0,0.04658379]
[1767529489993,0.06576463,91236.0,91231.0,0.05754497]
[1767529490193,0.0109607,91235.0,91231.0,0.05754497]
[1767529491338,0.0109607,91235.0,91231.0,0.04658379]
[1767529491536,0.08768402,91236.0,91235.0,0.000999]
[1767529491687,0.01111234,91238.0,91237.0,0.04658379]
[1767529491888,0.05480232,91237.0,91236.0,0.01]
[1767529492092,0.01096058,91236.0,91232.0,0.04658379]
[1767529492303,0.0109607,91235.0,91232.0,0.04658379]
[1767529492536,0.05480417,91234.0,91232.0,0.04658379]
[1767529493253,0.06576321,91238.0,91235.0,0.04658379]
[1767529494199,0.01096034,91238.0,91235.0,0.04658379]
[1767529494405,0.01096034,91238.0,91235.0,0.04644081]
[1767529494406,0.06576216,91238.0,91235.0,0.04644081]
[1767529494608,0.01096034,91238.0,91235.0,0.04644081]
[1767529495092,0.01096022,91239.0,91235.0,0.04644081]
[1767529495492,0.05480099,91240.0,91235.0,0.04644081]
[1767529495710,0.06576147,91239.0,91235.0,0.04644081]
[1767529495912,0.01096022,91239.0,91235.0,0.0109607]
[1767529496530,0.06576109,91240.0,91235.0,0.06576411]
[1767529496855,0.01096022,91239.0,91235.0,0.0109607]
[1767529497671,0.06576109,91240.0,91235.0,0.06576413]
[1767529498368,0.06575919,91242.0,91237.0,0.06576234]
[1767529498477,0.06612058,91242.0,91237.0,0.06576234]
[1767529498886,0.11162371,91242.0,91237.0,0.06576234]
[1767529499333,0.05682438,91242.0,91238.0,0.01096034]
[1767529499506,0.04586452,91242.0,91238.0,0.06576197]
[1767529499702,0.0328795,91245.0,91242.0,0.000999]
[1767529499902,0.03295869,91245.0,91240.0,0.06576042]
[1767529500110,0.07846182,91245.0,91240.0,0.06576042]
[1767529500314,0.04558232,91245.0,91242.0,0.01095986]
[1767529500727,0.04558232,91245.0,91241.0,0.05479969]
[1767529501060,0.01095986,91242.0,91236.0,0.01096058]
[1767529501259,0.06575891,91243.0,91210.0,0.47141926]
[1767529501260,0.01096022,91239.0,91231.0,0.06576707]
[1767529501460,0.01096046,91237.0,91233.0,0.01096094]
[1767529501664,0.01096034,91238.0,91227.0,0.03288166]
[1767529501987,0.06576544,91234.0,91233.0,0.05479508]
[1767529502193,0.06576544,91234.0,91230.0,0.04863864]
[1767529502194,0.05480593,91231.0,91230.0,0.04863864]
[1767529502363,0.05480593,91231.0,91225.0,0.05480903]
[1767529502364,0.0109613,91230.0,91225.0,0.05960054]
[1767529502564,0.01096118,91231.0,91227.0,0.0596003]
[1767529502770,0.05480582,91232.0,91229.0,0.04863864]
[1767529502935,0.06576568,91233.0,91229.0,0.04863864]
[1767529503135,0.06576551,91234.0,91229.0,0.11440719]
[1767529503333,0.06576551,91234.0,91230.0,0.04863864]
[1767529503549,0.05480351,91236.0,91230.0,0.06576771]
[1767529503550,0.0109607,91235.0,91230.0,0.06576771]
[1767529503745,0.06576395,91237.0,91232.0,0.01096106]
[1767529503985,0.01096058,91236.0,91231.0,0.06576666]
[1767529504189,0.0109607,91235.0,91230.0,0.06576675]
[1767529504406,0.01096082,91234.0,91230.0,0.0109613]
[1767529505037,0.01096046,91237.0,91234.0,0.000999]
[1767529505533,0.06576136,91239.0,91234.0,0.04863864]
[1767529505736,0.06576067,91240.0,91235.0,0.06576416]
[1767529506056,0.01096022,91239.0,91234.0,0.06576445]
[1767529507158,0.06576142,91239.0,91234.0,0.06576445]
[1767529507294,0.06576214,91238.0,91233.0,0.06576564]
[1767529507481,0.06576142,91239.0,91234.0,0.06576481]
[1767529508138,0.06576208,91238.0,91233.0,0.06576564]
[1767529508372,0.01096082,91234.0,91229.0,0.01096142]
[1767529508563,0.01096058,91236.0,91230.0,0.0109613]
[1767529509058,0.01096058,91236.0,91226.0,0.03288178]
[1767529509059,0.01096106,91232.0,91226.0,0.03288178]
[1767529509206,0.06576745,91232.0,91227.0,0.06576995]
[1767529509413,0.06576582,91233.0,91228.0,0.06576927]
[1767529509668,0.06576582,91233.0,91229.0,0.04863864]
[1767529509871,0.06576582,91233.0,91232.0,0.04863864]
[1767529510028,0.01576582,91233.0,91230.0,0.04863864]
[1767529510234,0.02672676,91233.0,91230.0,0.04863864]
[1767529510430,0.01096106,91232.0,91228.0,0.01096154]
[1767529510631,0.01096106,91232.0,91226.0,0.08769068]
[1767529510632,0.05480703,91230.0,91226.0,0.02192]
[1767529510836,0.01096118,91231.0,91226.0,0.03288178]
[1767529511168,0.01096118,91231.0,91227.0,0.04863864]
[1767529511376,0.06576656,91232.0,91228.0,0.04863864]
[1767529511526,0.01096118,91231.0,91228.0,0.04863864]
[1767529511725,0.01096118,91231.0,91227.0,0.01096166]
[1767529511932,0.01096106,91232.0,91228.0,0.01096154]
[1767529512136,0.06576608,91234.0,91232.0,0.000999]
[1767529512347,0.06576608,91234.0,91232.0,0.04963764]
[1767529512565,0.01096082,91234.0,91232.0,0.04963764]
[1767529512767,0.05480473,91233.0,91232.0,0.04863864]
[1767529512966,0.01096106,91232.0,91227.0,0.01096166]
[1767529513371,0.01096106,91232.0,91228.0,0.01096154]
[1767529513666,0.06576352,91236.0,91232.0,0.000999]
[1767529513865,0.06576352,91236.0,91232.0,0.01096106]
[1767529513866,0.01096058,91236.0,91232.0,0.01096106]
[1767529514068,0.06576355,91236.0,91232.0,0.01096106]
[1767529514276,0.06576444,91237.0,91233.0,0.01096094]
[1767529514476,0.06576394,91236.0,91230.0,0.06576731]
[1767529514686,0.01096058,91236.0,91231.0,0.06576706]
[1767529514888,0.0109607,91235.0,91231.0,0.01096118]
[1767529515131,0.06576511,91234.0,91230.0,0.04863864]
[1767529515253,0.00996182,91234.0,91230.0,0.11440642]
[1767529515459,0.0109607,91235.0,91234.0,0.00996182]
[1767529515898,0.23016858,91238.0,91234.0,0.02092264]
[1767529515899,0.01096034,91238.0,91234.0,0.02092264]
[1767529516090,0.06576077,91240.0,91235.0,0.05945639]
[1767529516296,0.01576077,91240.0,91235.0,0.05945639]
[1767529516493,0.01095962,91244.0,91236.0,0.04863864]
[1767529516781,0.0109601,91240.0,91235.0,0.01081775]
[1767529516916,0.06576106,91240.0,91235.0,0.06562115]
[1767529517100,0.06576097,91241.0,91236.0,0.0780825]
[1767529517401,0.06576074,91240.0,91236.0,0.01231903]
[1767529517599,0.0109601,91240.0,91236.0,0.02327961]
[1767529517803,0.06576097,91241.0,91236.0,0.07808251]
[1767529518227,0.0109601,91240.0,91236.0,0.02327961]
[1767529518680,0.0109601,91240.0,91236.0,0.01096058]
[1767529518991,0.01096034,91238.0,91234.0,0.07808365]
[1767529519136,0.01096022,91239.0,91234.0,0.07808365]
[1767529519336,0.06576112,91240.0,91235.0,0.0109607]
[1767529519544,0.0109601,91240.0,91235.0,0.06576422]
[1767529519925,0.06576067,91240.0,91234.0,0.07808365]
[1767529520076,0.01096022,91239.0,91234.0,0.02327985]
[1767529520407,0.06576067,91240.0,91235.0,0.06576415]
[1767529520633,0.0109601,91240.0,91236.0,0.01096058]
[1767529520915,0.0109601,91240.0,91235.0,0.05480309]
[1767529521114,0.0108913,91240.0,91235.0,0.06576379]
[1767529521315,0.0108913,91240.0,91236.0,0.01096058]
[1767529521463,0.06575926,91242.0,91236.0,0.05480284]
[1767529521664,0.01095998,91241.0,91236.0,0.06576342]
[1767529521868,0.04649593,91241.0,91237.0,0.06576272]
[1767529522071,0.04649593,91241.0,91235.0,0.06576409]
[1767529522279,0.06575926,91242.0,91236.0,0.03632859]
[1767529522521,0.0109601,91240.0,91235.0,0.05480351]
[1767529522711,0.0109601,91240.0,91236.0,0.01096058]
[1767529523501,0.01095986,91242.0,91237.0,0.06576223]
[1767529523785,0.05479908,91243.0,91238.0,0.11440066]
[1767529523980,0.05479821,91244.0,91238.0,0.06576202]
[1767529524186,0.01095986,91242.0,91238.0,0.01096034]
[1767529524734,0.01095974,91243.0,91239.0,0.01096022]
[1767529524934,0.0109595,91245.0,91242.0,0.02320335]
[1767529525168,0.05479741,91246.0,91241.0,0.01095998]
[1767529525315,0.06580822,91246.0,91241.0,0.01095998]
[1767529525523,5.143e-05,91246.0,91241.0,0.06575989]
[1767529525780,0.05484874,91246.0,91241.0,0.01095998]
[1767529525954,0.06580812,91246.0,91241.0,0.01095998]
[1767529526150,0.01101081,91246.0,91241.0,0.06575968]
[1767529526673,0.04649593,91248.0,91220.0,0.04863864]
[1767529526820,0.04649593,91248.0,91245.0,0.0109595]
[1767529527023,0.04649593,91248.0,91244.0,0.01567945]
[1767529527228,0.0004,91249.0,91248.0,0.06479572]
[1767529528130,0.00023058,91252.0,91249.0,0.01095902]
[1767529528339,0.00023058,91252.0,91251.0,0.05479392]
[1767529529234,0.0004,91255.0,91253.0,0.05479257]
[1767529529502,0.0004,91255.0,91254.0,0.05479211]
[1767529529680,0.05478911,91260.0,91254.0,0.01095842]
[1767529529885,0.000952,91282.0,91254.0,0.01095842]
[1767529529886,0.21912843,91271.0,91256.0,0.01095818]
[1767529530091,0.01095758,91261.0,91256.0,0.01095818]
[1767529530400,0.0109577,91260.0,91255.0,0.06574922]
[1767529531047,0.0109577,91260.0,91255.0,0.10522064]
[1767529531256,0.01095746,91262.0,91257.0,0.03947142]
[1767529531402,0.01095746,91262.0,91258.0,0.01095794]
[1767529531735,0.000999,91258.0,91256.0,0.01095818]
[1767529531939,0.00091046,91258.0,91255.0,0.0109583]
[1767529532162,0.01095782,91259.0,91253.0,0.06575077]
[1767529532316,0.06574708,91259.0,91253.0,0.06575077]
[1767529532522,0.06574708,91259.0,91253.0,0.01095854]
[1767529532722,0.01095746,91262.0,91252.0,0.09426469]
[1767529532723,0.0109571,91265.0,91259.0,0.02104582]
[1767529532924,0.03599231,91268.0,91261.0,0.01095758]
[1767529533088,0.03599231,91268.0,91262.0,0.01095746]
[1767529533288,0.0109571,91265.0,91261.0,0.01095758]
[1767529533699,0.01095722,91264.0,91259.0,0.06574681]
[1767529533905,0.01095722,91264.0,91260.0,0.0109577]
[1767529534099,0.01095722,91264.0,91258.0,0.06574723]
[1767529534330,0.06574345,91264.0,91258.0,0.06574723]
[1767529534775,0.01095758,91261.0,91255.0,0.0328783]
[1767529534987,0.01095758,91261.0,91256.0,0.01095818]
[1767529535261,0.0109577,91260.0,91252.0,0.01095866]
[1767529535460,0.0109577,91260.0,91254.0,0.01575042]
[1767529535461,0.05478851,91260.0,91254.0,0.01575042]
[1767529535662,0.01095794,91258.0,91255.0,0.02018952]
[1767529535860,0.06391791,91258.0,91256.0,0.04592943]
[1767529536080,0.01391791,91258.0,91256.0,0.04592943]
[1767529536284,0.01095782,91259.0,91256.0,0.04592943]
[1767529536488,0.01095794,91258.0,91255.0,0.02018952]
[1767529536806,0.01095866,91252.0,91246.0,0.05479692]
[1767529536960,0.01095866,91252.0,91244.0,0.01145807]
[1767529536961,0.0109589,91250.0,91244.0,0.00049845]
[1767529537170,0.01095914,91248.0,91245.0,0.02192]
[1767529537550,0.0109589,91250.0,91245.0,0.02192]
[1767529537810,0.06575349,91250.0,91245.0,0.07671748]
[1767529537985,0.0109589,91250.0,91245.0,0.07671748]
[1767529538185,0.0109589,91250.0,91244.0,0.00049845]
[1767529538186,0.01095902,91249.0,91244.0,0.00049845]
[1767529538568,0.01095986,91242.0,91238.0,0.02192]
[1767529538768,0.01095986,91242.0,91238.0,0.02228139]
[1767529539240,0.23015199,91245.0,91242.0,0.000999]
[1767529539241,0.06575853,91243.0,91242.0,0.000999]
[1767529539549,0.01095974,91243.0,91239.0,0.01096022]
[1767529539718,0.01095962,91244.0,91240.0,0.0109601]
[1767529539938,0.01095962,91244.0,91239.0,0.0657612]
[1767529540248,0.01095974,91243.0,91239.0,0.01096022]
[1767529540577,0.01095974,91243.0,91238.0,0.08804338]
[1767529540914,0.06575758,91245.0,91240.0,0.06576028]
[1767529540915,0.0109595,91245.0,91240.0,0.06576028]
[1767529541079,0.0109595,91245.0,91241.0,0.01095998]
[1767529541259,0.01095938,91246.0,91241.0,0.06575987]
[1767529541438,0.06566775,91246.0,91241.0,0.01095998]
[1767529541622,0.06566775,91246.0,91242.0,0.04592943]
[1767529542085,0.06557919,91246.0,91242.0,0.04592943]
[1767529542317,0.0109595,91245.0,91242.0,0.04592943]
[1767529542504,0.06575711,91245.0,91242.0,0.04493043]
[1767529543066,0.01078227,91246.0,91242.0,0.04493043]
[1767529543290,0.01095926,91247.0,91245.0,0.000999]
[1767529543462,0.24108405,91256.0,91247.0,0.01095926]
[1767529543463,0.06575098,91254.0,91247.0,0.01095926]
[1767529543670,0.01095878,91251.0,91244.0,0.01095962]
[1767529543874,0.0109589,91250.0,91244.0,0.01095962]
[1767529544046,0.06575363,91250.0,91245.0,0.06575701]
[1767529544291,0.0109589,91250.0,91245.0,0.06575701]
[1767529544493,0.01095914,91248.0,91244.0,0.01095962]
[1767529544692,0.06575416,91249.0,91244.0,0.01095962]
[1767529544693,0.06575416,91249.0,91244.0,0.06575747]
[1767529545059,0.06575416,91249.0,91244.0,0.06561453]
[1767529545259,0.0109589,91250.0,91246.0,0.01095938]
[1767529545456,0.06575438,91249.0,91244.0,0.06561453]
[1767529545658,0.01095902,91249.0,91245.0,0.0109595]
[1767529545856,0.01095902,91249.0,91244.0,0.06561453]
[1767529546127,0.01095902,91249.0,91245.0,0.0109595]
[1767529546316,0.01095902,91249.0,91244.0,0.06561453]
[1767529546517,0.01095902,91249.0,91245.0,0.0109595]
[1767529546723,0.06575417,91249.0,91244.0,0.01095962]
[1767529547282,0.01095902,91249.0,91244.0,0.0657574]
[1767529547489,0.06575343,91250.0,91245.0,0.05479749]
[1767529548131,0.01095902,91249.0,91245.0,0.0109595]
[1767529548356,0.01095902,91249.0,91244.0,0.0657574]
[1767529549131,0.01095914,91248.0,91242.0,0.06575869]
[1767529549294,0.01095938,91246.0,91242.0,0.01095986]
[1767529549488,0.01095902,91249.0,91246.0,0.000999]
[1767529549682,0.01095914,91248.0,91242.0,0.06575909]
[1767529549900,0.01095914,91248.0,91243.0,0.01095974]
[1767529550082,0.06575449,91249.0,91243.0,0.01095974]
[1767529550395,0.01095878,91251.0,91244.0,0.01095962]
[1767529550618,0.06575285,91251.0,91246.0,0.06575612]
[1767529550817,0.01095878,91251.0,91247.0,0.01095926]
[1767529550996,0.01145709,91252.0,91248.0,0.01095914]
[1767529551516,0.00049843,91252.0,91248.0,0.01095914]
[1767529551718,0.00049843,91252.0,91248.0,0.06575481]
[1767529551888,0.00049843,91252.0,91249.0,0.01095902]
[1767529552431,0.00049843,91252.0,91249.0,0.0657539]
[1767529552785,0.00049843,91252.0,91249.0,0.01095902]
[1767529553137,4.3e-07,91252.0,91249.0,0.06575363]
[1767529553452,4.3e-07,91252.0,91250.0,0.05479427]
[1767529554463,4.3e-07,91252.0,91251.0,0.05479392]
[1767529554667,4.3e-07,91252.0,91250.0,0.05479427]
[1767529555643,4.3e-07,91252.0,91251.0,0.05479392]
[1767529557580,0.01095782,91259.0,91250.0,0.05479427]
[1767529557581,0.06574307,91265.0,91259.0,0.06574677]
[1767529557783,0.01095722,91264.0,91260.0,0.0109577]
[1767529558390,0.08766262,91265.0,91261.0,0.01095758]
[1767529558592,0.08766262,91265.0,91261.0,0.01045958]
[1767529558855,0.02192,91265.0,91262.0,0.06574426]
[1767529558967,0.07670555,91265.0,91261.0,0.01045958]
[1767529559170,0.06574229,91266.0,91261.0,0.01045958]
[1767529559373,0.02192,91267.0,91263.0,0.01095734]
[1767529559624,0.08766121,91267.0,91262.0,0.01095746]
[1767529559825,0.01095698,91266.0,91261.0,0.06524729]
[1767529560189,0.03287686,91267.0,91262.0,0.01095746]
[1767529560393,0.03287686,91267.0,91263.0,0.01095734]
[1767529560743,0.03287686,91267.0,91263.0,0.06574398]
[1767529560946,0.0454517,91273.0,91266.0,0.01095698]
[1767529561084,0.02192,91271.0,91268.0,0.01095674]
[1767529561289,0.02192,91271.0,91268.0,0.01091247]
[1767529561492,0.000552,91275.0,91271.0,0.01095638]
[1767529561686,0.02192,91274.0,91271.0,0.01]
[1767529561932,0.007837,91274.0,91271.0,0.00985709]
[1767529562138,0.0627258,91274.0,91271.0,0.00985709]
[1767529562300,0.00794533,91274.0,91271.0,0.06573829]
[1767529562514,0.00010833,91274.0,91271.0,0.01095638]
[1767529562717,3.3e-07,91274.0,91273.0,0.05478071]
[1767529563822,3.3e-07,91274.0,91273.0,0.0545298]
[1767529564422,3.3e-07,91274.0,91273.0,0.05448553]
[1767529564622,3.3e-07,91274.0,91273.0,0.05444126]
[1767529565086,1e-08,91277.0,91276.0,0.05477891]
[1767529565457,0.00044036,91279.0,91278.0,0.05477771]
[1767529566517,0.00044036,91279.0,91277.0,0.05477831]
[1767529566866,0.00044036,91279.0,91278.0,0.05477771]
[1767529567691,0.00044036,91279.0,91276.0,0.01095578]
[1767529568288,0.00044036,91279.0,91276.0,0.06573463]
[1767529568513,0.00044036,91279.0,91276.0,0.01095578]
[1767529569298,0.00044036,91279.0,91276.0,0.06573456]
[1767529569492,0.06573325,91278.0,91273.0,0.0657366]
[1767529569696,0.06573417,91277.0,91271.0,0.06573788]
[1767529570229,0.06573417,91277.0,91272.0,0.0547813]
[1767529570430,0.06573417,91277.0,91272.0,0.06573756]
[1767529570696,0.01095578,91276.0,91272.0,0.01095626]
[1767529570858,0.06573417,91277.0,91272.0,0.06573746]
[1767529571302,0.00044036,91279.0,91275.0,0.05477924]
[1767529571887,0.00044036,91279.0,91276.0,0.01095578]
[1767529572249,0.00044036,91279.0,91275.0,0.06573514]
[1767529572820,0.01095518,91281.0,91279.0,0.04727825]
[1767529573029,0.06613075,91282.0,91279.0,0.04723399]
[1767529573170,0.0004,91282.0,91279.0,0.01095542]
[1767529573777,0.03911409,91284.0,91279.0,0.01095542]
[1767529573985,0.01095506,91282.0,91278.0,0.06573322]
[1767529574217,0.06572975,91283.0,91278.0,0.06573322]
[1767529574420,0.01095494,91283.0,91279.0,0.01095542]
[1767529574634,0.0004,91285.0,91282.0,0.01095506]
[1767529574834,0.0004,91285.0,91282.0,0.06573032]
[1767529575220,0.0004,91285.0,91281.0,0.01095518]
[1767529575396,0.0004,91285.0,91282.0,0.01095506]
[1767529575599,0.0004,91285.0,91284.0,0.05477411]
[1767529575801,0.0004,91287.0,91283.0,0.01095494]
[1767529576001,0.0004,91287.0,91282.0,0.06572986]
[1767529576204,0.06572759,91286.0,91282.0,0.0109108]
[1767529576410,0.000844,91282.0,91281.0,0.01095518]
[1767529576618,0.01095482,91284.0,91280.0,0.06573131]
[1767529576815,0.06572823,91285.0,91280.0,0.06573131]
[1767529577292,0.000844,91280.0,91277.0,0.01095566]
[1767529577461,0.000844,91280.0,91278.0,0.05477753]
[1767529577622,0.0008,91280.0,91278.0,0.05473327]
[1767529577823,0.01095518,91281.0,91276.0,0.06573465]
[1767529578024,0.06573037,91282.0,91272.0,0.28105968]
[1767529578251,0.06573121,91281.0,91276.0,0.01095578]
[1767529578529,0.06573255,91279.0,91275.0,0.0109559]
[1767529578753,0.01095554,91278.0,91272.0,0.02192]
[1767529578931,0.0109559,91275.0,91272.0,0.00604455]
[1767529579360,0.05478071,91273.0,91272.0,0.0528828]
[1767529579531,0.05478011,91274.0,91272.0,0.00604455]
[1767529579729,0.0109559,91275.0,91272.0,0.00604455]
[1767529579730,0.02585849,91273.0,91272.0,0.00604455]
[1767529581960,0.02585849,91273.0,91272.0,1e-08]
[1767529590762,0.05478371,91268.0,91267.0,0.02192]
[1767529590979,0.05385587,91268.0,91267.0,0.02192]
[1767529591129,7.116e-05,91268.0,91267.0,0.02192]
[1767529592970,7.116e-05,91268.0,91267.0,0.07670431]
[1767529593312,0.0109559,91275.0,91271.0,0.01095638]
[1767529593468,0.06573397,91277.0,91272.0,0.01095626]
[1767529593668,0.06573598,91275.0,91270.0,0.0109565]
[1767529593885,0.06573598,91275.0,91269.0,0.0657397]
[1767529594113,0.0109559,91275.0,91269.0,0.0657397]
[1767529594295,0.0109559,91275.0,91271.0,0.06573826]
[1767529594608,0.06573483,91276.0,91271.0,0.06573826]
[1767529595991,0.01095578,91276.0,91272.0,0.01095626]
[1767529596401,0.06573472,91276.0,91272.0,0.01095626]
[1767529596622,0.06573472,91276.0,91271.0,0.06573826]
[1767529597057,0.06573551,91275.0,91271.0,0.01095638]
[1767529597460,0.06573647,91274.0,91268.0,0.05478361]
[1767529597759,0.01095626,91272.0,91267.0,0.08766061]
[1767529598114,0.06573741,91273.0,91268.0,0.06574042]
[1767529598340,0.01095614,91273.0,91267.0,0.02192]
[1767529598547,0.0109565,91270.0,91267.0,0.02192]
[1767529598901,0.06573844,91271.0,91267.0,0.02192]
[1767529600471,0.01095638,91271.0,91267.0,0.02792876]
[1767529600802,0.01095638,91271.0,91267.0,0.0169719]
[1767529601700,0.01086572,91271.0,91267.0,0.0169719]
[1767529602068,0.06564775,91271.0,91267.0,0.0169719]
[1767529602265,0.11082962,91272.0,91267.0,0.08271295]
[1767529603129,0.06573866,91272.0,91267.0,0.08271295]
[1767529603275,0.04509096,91277.0,91272.0,0.01095626]
[1767529603453,0.04509096,91286.0,91281.0,0.01095518]
[1767529603674,0.000999,91281.0,91280.0,0.06573179]
[1767529604111,0.04509096,91284.0,91281.0,0.01095518]
[1767529604477,0.04509096,91284.0,91280.0,0.06573179]
[1767529604679,0.04509096,91284.0,91280.0,0.0109553]
[1767529604933,0.04509096,91284.0,91281.0,0.01095518]
[1767529605162,0.04509096,91284.0,91282.0,0.05477526]
[1767529606216,0.000999,91282.0,91281.0,0.06573096]
[1767529606641,0.000999,91282.0,91281.0,0.01095518]
[1767529606857,0.04509096,91284.0,91281.0,0.01095518]
[1767529607399,0.04509096,91284.0,91280.0,0.06573154]
[1767529607598,0.04509096,91284.0,91280.0,0.01573154]
[1767529607781,0.05604578,91284.0,91280.0,0.0109553]
[1767529607927,0.04509096,91284.0,91281.0,0.01095518]
[1767529608126,0.04509096,91284.0,91280.0,0.06573158]
[1767529608571,0.04509096,91284.0,91281.0,0.01095518]
[1767529609920,0.04509096,91284.0,91281.0,0.06573106]
[1767529610600,0.04509096,91284.0,91282.0,0.05477525]
[1767529610801,0.04409196,91284.0,91283.0,0.05477471]
[1767529611261,0.04516214,91286.0,91285.0,0.05477351]
[1767529611673,0.04516214,91286.0,91284.0,0.05477386]
[1767529611892,0.000999,91285.0,91284.0,0.05477386]
[1767529612097,0.04516214,91286.0,91284.0,0.05477386]
[1767529612473,0.04516214,91286.0,91285.0,0.05477351]
[1767529613443,7.118e-05,91286.0,91285.0,0.05477351]
[1767529616473,7.118e-05,91286.0,91284.0,0.05477386]
[1767529616666,0.01,91285.0,91283.0,0.06572915]
[1767529617643,0.04516214,91286.0,91283.0,0.06572915]
[1767529618069,0.04516214,91286.0,91284.0,0.05477399]
[1767529618452,0.04516214,91286.0,91285.0,0.05477351]
[1767529618997,0.04516214,91286.0,91284.0,0.05477399]
[1767529619804,7.118e-05,91286.0,91284.0,0.05477399]
[1767529620026,7.118e-05,91286.0,91285.0,0.05477351]
[1767529621550,0.0004,91288.0,91286.0,0.05477291]
[1767529621736,0.0004,91288.0,91287.0,0.05472699]
[1767529621903,0.01150574,91293.0,91289.0,0.06572502]
[1767529621904,0.06766864,91292.0,91289.0,0.06572502]
[1767529622621,0.04534864,91291.0,91289.0,0.0656797]
[1767529622816,0.04534864,91291.0,91290.0,0.0546778]
[1767529623139,0.04534864,91291.0,91289.0,0.0656797]
[1767529623305,0.04534864,91291.0,91290.0,0.05477051]
[1767529623508,0.04534864,91291.0,91289.0,0.0656797]
[1767529623704,0.04534864,91291.0,91290.0,0.05477051]
[1767529624106,0.04534864,91291.0,91289.0,0.0656797]
[1767529624309,0.02232,91292.0,91289.0,0.0656797]
[1767529624648,0.02232,91292.0,91290.0,0.05403707]
[1767529625050,0.06766864,91292.0,91287.0,0.06572632]
[1767529625252,0.010999,91290.0,91288.0,0.05477156]
[1767529625458,0.02232,91292.0,91289.0,0.01095422]
[1767529626029,0.02232,91292.0,91289.0,0.0657253]
[1767529627062,0.02232,91292.0,91289.0,0.0647263]
[1767529628791,0.02232,91292.0,91290.0,0.05477004]
[1767529629528,0.02232,91292.0,91288.0,0.06572572]
[1767529629882,0.03327386,91292.0,91288.0,0.06572572]
[1767529630794,0.06766864,91292.0,91288.0,0.06572572]
[1767529631468,0.0786225,91292.0,91288.0,0.06572572]
[1767529631710,0.01,91288.0,91286.0,0.06572577]
[1767529632112,0.01095482,91284.0,91278.0,0.05477763]
[1767529632293,0.06572941,91284.0,91279.0,0.01095542]
[1767529633091,0.06572941,91284.0,91279.0,0.065732]
[1767529633490,0.01095482,91284.0,91280.0,0.06573172]
[1767529633715,0.01095482,91284.0,91280.0,0.0109553]
[1767529633716,0.06572922,91284.0,91280.0,0.0109553]
[1767529633920,0.01,91280.0,91279.0,0.01095542]
[1767529634080,0.04534864,91280.0,91279.0,0.02668772]
[1767529634455,0.06572831,91285.0,91277.0,0.23006876]
[1767529634592,0.01095482,91284.0,91281.0,0.04591058]
[1767529634798,0.06572903,91284.0,91281.0,0.04591058]
[1767529635111,0.01572776,91286.0,91282.0,0.04591058]
[1767529635311,0.0109547,91285.0,91280.0,0.06701835]
[1767529635858,0.0109547,91285.0,91281.0,0.06573099]
[1767529636389,0.06572833,91285.0,91281.0,0.01095518]
[1767529636623,0.02668234,91286.0,91281.0,0.06573063]
[1767529637029,0.0109547,91285.0,91281.0,0.06573063]
[1767529637253,0.01095458,91286.0,91282.0,0.06573025]
[1767529637458,0.06572785,91287.0,91282.0,0.06573025]
[1767529637990,0.06572754,91286.0,91281.0,0.06573063]
[1767529638197,0.06572832,91285.0,91281.0,0.01095518]
[1767529638394,0.0109547,91285.0,91281.0,0.06573101]
[1767529638778,0.06572754,91286.0,91281.0,0.06573101]
[1767529639758,0.06572754,91286.0,91280.0,0.0012866]
[1767529639759,0.01095482,91284.0,91280.0,0.0012866]
[1767529639962,0.000999,91281.0,91280.0,0.04719718]
[1767529640163,0.06572942,91284.0,91280.0,0.04719718]
[1767529640786,0.06572942,91284.0,91280.0,0.11292887]
[1767529641151,0.01095482,91284.0,91280.0,0.06701829]
[1767529641906,0.01095482,91284.0,91280.0,0.06701839]
[1767529642205,0.01095482,91284.0,91280.0,0.0122419]
[1767529642610,0.06564056,91284.0,91280.0,0.0122419]
[1767529643109,0.06572834,91285.0,91280.0,0.06701836]
[1767529644673,0.0109547,91285.0,91281.0,0.01095518]
[1767529645597,0.06572825,91285.0,91281.0,0.06573104]
[1767529646208,0.0109547,91285.0,91281.0,0.06573104]
[1767529647566,0.06572855,91286.0,91281.0,0.06573104]
[1767529648241,0.06572855,91286.0,91280.0,0.0012866]
[1767529648242,0.01095482,91284.0,91280.0,0.0012866]
[1767529648443,0.000999,91281.0,91280.0,0.0012866]
[1767529648823,0.06572951,91284.0,91280.0,0.0012866]
[1767529649014,0.06572951,91284.0,91280.0,0.0122419]
[1767529649215,0.11107705,91285.0,91280.0,0.06701841]
[1767529650164,0.06572965,91283.0,91278.0,0.01095554]
[1767529650344,0.01095482,91284.0,91279.0,0.0657323]
[1767529650548,0.06572921,91284.0,91279.0,0.0657323]
[1767529651392,0.06572971,91283.0,91279.0,0.0657323]
[1767529651708,0.06572971,91283.0,91278.0,0.06573315]
[1767529651709,0.01095494,91283.0,91278.0,0.0657332]
[1767529652086,0.04596921,91282.0,91278.0,0.0657332]
[1767529652289,0.04596921,91282.0,91279.0,0.05477705]
[1767529652495,0.04596921,91282.0,91279.0,0.01673123]
[1767529652701,0.04354236,91282.0,91279.0,0.02768665]
[1767529652868,0.04354236,91282.0,91280.0,0.05477633]
[1767529653201,0.04354236,91282.0,91279.0,0.02768665]